[Event "ESCC-50 2022"]
[Site "Lublin"]
[Date "2022.07.12"]
[Round "8.2"]
[White "Garabetyan, Arno"]
[Black "Lasinskas, Povilas"]
[Result "1/2-1/2"]
[ECO "E11"]
[WhiteElo "2056"]
[BlackElo "2096"]
[Annotator "ChessBase"]
[PlyCount "90"]
[EventDate "2022.07.05"]
[EventType "swiss"]
[EventCountry "POL"]
[SourceTitle "playchess.com"]
[Source "ChessBase"]
[SourceQuality "1"]
[TimeControl "40/5400+30:1800+30"]

1. Nf3 {[%emt 0:00:03]} Nf6 {[%emt 0:00:24]} 2. c4 {[%emt 0:00:14]} e6 {[%emt 0:00:30]} 3. d4 {[%emt 0:01:20]} Bb4+ {[%emt 0:00:25]} 4. Nbd2 {[%emt 0:00:10]} a5 {[%emt 0:00:16]} 5. g3 {[%emt 0:01:33]} b6 {[%emt 0:00:09]} 6. Bg2 {[%emt 0:00:10]} Bb7 {[%emt 0:00:05]} 7. O-O {[%emt 0:00:18]} Bxd2 {[%emt 0:00:30]} 8. Bxd2 {[%emt 0:02:36]} d6 {[%emt 0:00:20]} 9. b3 {[%emt 0:05:36]} Nbd7 {[%emt 0:00:41]} 10. Bc3 {[%emt 0:01:11]} O-O {[%emt 0:00:14]} 11. Rc1 {[%emt 0:11:46]} Qe7 {[%emt 0:02:36]} 12. d5 {[%emt 0:03:45]} e5 {[%emt 0:00:24]} 13. Nh4 {[%emt 0:01:05]} g6 {[%emt 0:07:19]} 14. e4 {[%emt 0:00:57]} Ne8 {[%emt 0:09:16]} 15. Bd2 {[%emt 0:10:56]} Ng7 {[%emt 0:04:34]} 16. Bh6 {[%emt 0:01:26]} f6 {[%emt 0:01:21]} 17. Qd2 {[%emt 0:05:32]} Nc5 {[%emt 0:06:05]} 18. Rce1 {[%emt 0:03:30]} Ba6 {[%emt 0:01:40]} 19. f4 {[%emt 0:04:05]} b5 {[%emt 0:02:04]} 20. Qc2 {[%emt 0:04:57]} bxc4 {[%emt 0:00:35]} 21. bxc4 {[%emt 0:01:27]} Rab8 {[%emt 0:00:17]} 22. Nf3 {[%emt 0:08:24]} Rb4 {[%emt 0:03:53]} 23. Nd2 Rfb8 {[%emt 0:00:32]} 24. Rb1 {[%emt 0:01:07]} Qd7 {[%emt 0:02:57]} 25. fxe5 {[%emt 0:04:50]} fxe5 {[%emt 0:00:15]} 26. Rxb4 {[%emt 0:00:57]} axb4 {[%emt 0:03:22]} 27. Be3 {[%emt 0:03:48]} Qa4 {[%emt 0:08:35]} 28. Nb3 {[%emt 0:00:39]} Nd7 {[%emt 0:03:59]} 29. Rf2 {[%emt 0:00:53]} c5 {[%emt 0:08:08]} 30. Qe2 {[%emt 0:04:08]} Rf8 {[%emt 0:00:57]} 31. Rxf8+ {[%emt 0:02:04]} Nxf8 {[%emt 0:03:29]} 32. Bf1 {[%emt 0:01:21]} Nd7 {[%emt 0:02:37]} 33. Bg5 {[%emt 0:02:01]} Nb6 {[%emt 0:00:32]} 34. Qc2 {[%emt 0:01:10]} Bc8 {[%emt 0:06:10]} 35. Qf2 {[%emt 0:00:57]} Qd7 {[%emt 0:07:08]} 36. Nxc5 {[%emt 0:08:45]} dxc5 {[%emt 0:06:03]} 37. Qxc5 {[%emt 0:00:01]} Na4 {[%emt 0:00:25]} 38. Qxb4 {[%emt 0:00:31]} Qa7+ {[%emt 0:00:13]} 39. Kg2 {[%emt 0:00:35]} Nc5 {[%emt 0:00:40]} 40. Be3 {[%emt 0:00:00]} Qxa2+ {[%emt 0:00:00]} 41. Kg1 {[%emt 0:05:35]} Nb7 {[%emt 0:12:31]} 42. Qe7 {[%emt 0:10:58]} Qa1 {[%emt 0:04:46]} 43. Bh6 {[%emt 0:02:09]} Qd4+ {[%emt 0:00:08]} 44. Kh1 {[%emt 0:00:15]} Qxe4+ {[%emt 0:00:18]} 45. Kg1 {[%emt 0:00:08]} Qd4+ {[%emt 0:00:20]} 1/2-1/2

[Event "ESCC-50 2022"]
[Site "Lublin"]
[Date "2022.07.12"]
[Round "8.3"]
[White "Klimaszewski, Dariusz"]
[Black "Wielosz, Jaroslaw"]
[Result "1/2-1/2"]
[ECO "A02"]
[WhiteElo "2152"]
[BlackElo "1891"]
[Annotator "ChessBase"]
[PlyCount "104"]
[EventDate "2022.07.05"]
[EventType "swiss"]
[EventCountry "POL"]
[SourceTitle "playchess.com"]
[Source "ChessBase"]
[SourceQuality "1"]
[TimeControl "40/5400+30:1800+30"]

1. f4 {[%emt 0:00:08]} Nf6 {[%emt 0:00:09]} 2. Nf3 {[%emt 0:00:22]} g6 {[%emt 0:00:51]} 3. c4 {[%emt 0:04:22]} c5 {[%emt 0:02:48]} 4. Nc3 {[%emt 0:00:46]} d5 {[%emt 0:03:51]} 5. cxd5 {[%emt 0:02:52]} Nxd5 {[%emt 0:00:29]} 6. g3 {[%emt 0:01:07]} Bg7 {[%emt 0:01:19]} 7. Bg2 {[%emt 0:00:45]} O-O {[%emt 0:03:27]} 8. O-O {[%emt 0:00:10]} Nxc3 {[%emt 0:15:02]} 9. dxc3 {[%emt 0:01:01]} Nc6 {[%emt 0:01:53]} 10. Be3 {[%emt 0:01:34]} Qxd1 {[%emt 0:10:35]} 11. Rfxd1 {[%emt 0:00:13]} c4 {[%emt 0:01:43]} 12. Nd4 {[%emt 0:03:21]} Nxd4 {[%emt 0:08:02]} 13. Bxd4 {[%emt 0:01:57]} Be6 {[%emt 0:02:38]} 14. Rd2 {[%emt 0:02:35]} Bxd4+ {[%emt 0:02:45]} 15. cxd4 {[%emt 0:00:55]} Rab8 {[%emt 0:01:44]} 16. d5 {[%emt 0:00:44]} Bd7 {[%emt 0:01:30]} 17. a4 {[%emt 0:00:15]} Rfc8 {[%emt 0:02:01]} 18. Rc2 {[%emt 0:00:16]} a5 {[%emt 0:04:20]} 19. e4 {[%emt 0:01:53]} Rc5 {[%emt 0:06:22]} 20. Bf1 {[%emt 0:01:41]} Rbc8 {[%emt 0:01:37]} 21. Rc3 {[%emt 0:02:06]} Kg7 {[%emt 0:03:24]} 22. Bg2 {[%emt 0:05:14]} b6 {[%emt 0:03:53]} 23. e5 {[%emt 0:01:31]} R8c7 {[%emt 0:03:43]} 24. Kf2 {[%emt 0:02:25]} h5 {[%emt 0:02:24]} 25. Ke3 {[%emt 0:00:32]} h4 {[%emt 0:01:03]} 26. Kd4 {[%emt 0:01:08]} hxg3 {[%emt 0:00:38]} 27. hxg3 {[%emt 0:00:13]} Rc8 {[%emt 0:03:49]} 28. Bf1 {[%emt 0:02:25]} Rh8 {[%emt 0:01:44]} 29. Bxc4 {[%emt 0:01:49]} Rcc8 {[%emt 0:02:15]} 30. Bd3 {[%emt 0:02:03]} Rxc3 {[%emt 0:02:44]} 31. bxc3 {[%emt 0:00:33]} Rh3 {[%emt 0:00:44]} 32. Rb1 {[%emt 0:01:35]} Rxg3 {[%emt 0:00:52]} 33. Rxb6 {[%emt 0:00:10]} Bxa4 {[%emt 0:01:55]} 34. c4 {[%emt 0:00:44]} g5 {[%emt 0:02:04]} 35. f5 {[%emt 0:05:39]} g4 {[%emt 0:00:30]} 36. c5 {[%emt 0:01:15]} Rg1 {[%emt 0:00:32]} 37. Rb2 {[%emt 0:02:22]} Kh6 {[%emt 0:01:54]} 38. c6 {[%emt 0:00:47]} g3 {[%emt 0:00:52]} 39. Be4 {[%emt 0:00:34]} Rd1+ {[%emt 0:00:30]} 40. Ke3 {[%emt 0:00:00]} Rc1 {[%emt 0:00:00]} 41. Kf4 {[%emt 0:03:06]} Rc4 {[%emt 0:04:24]} 42. Rg2 {[%emt 0:01:50]} e6 {[%emt 0:03:19]} 43. Ke3 {[%emt 0:18:26]} exd5 {[%emt 0:06:49]} 44. Bd3 {[%emt 0:00:26]} Bxc6 {[%emt 0:04:16]} 45. Rxg3 {[%emt 0:00:28]} Rh4 {[%emt 0:02:23]} 46. e6 {[%emt 0:00:51]} d4+ {[%emt 0:00:50]} 47. Kd2 {[%emt 0:00:26]} Rh2+ {[%emt 0:01:29]} 48. Kc1 {[%emt 0:00:29]} fxe6 {[%emt 0:01:13]} 49. Rg6+ {[%emt 0:00:41]} Kh5 {[%emt 0:00:51]} 50. Rxe6 {[%emt 0:00:46]} Rh1+ {[%emt 0:01:42]} 51. Kd2 {[%emt 0:00:31]} Rh2+ {[%emt 0:00:25]} 52. Kc1 {[%emt 0:01:10]} Rh1+ {[%emt 0:01:25]} 1/2-1/2

[Event "ESCC-50 2022"]
[Site "Lublin"]
[Date "2022.07.12"]
[Round "8.4"]
[White "Lilja, Richard"]
[Black "Druckenthaner, Andreas"]
[Result "1-0"]
[ECO "C30"]
[WhiteElo "2131"]
[BlackElo "2272"]
[Annotator "ChessBase"]
[PlyCount "107"]
[EventDate "2022.07.05"]
[EventType "swiss"]
[EventCountry "POL"]
[SourceTitle "playchess.com"]
[Source "ChessBase"]
[SourceQuality "1"]
[TimeControl "40/5400+30:1800+30"]

1. e4 {[%emt 0:00:04]} e5 {[%emt 0:00:09]} 2. f4 {[%emt 0:00:07]} d6 {[%emt 0:00:17]} 3. d3 {[%emt 0:04:22]} Nc6 {[%emt 0:01:08]} 4. Nf3 {[%emt 0:00:42]} Nge7 {[%emt 0:14:46]} 5. Nc3 {[%emt 0:07:48]} Ng6 {[%emt 0:06:46]} 6. f5 {[%emt 0:02:23]} Nh4 {[%emt 0:00:45]} 7. Nxh4 {[%emt 0:02:13]} Qxh4+ {[%emt 0:00:07]} 8. g3 {[%emt 0:00:06]} Qd8 {[%emt 0:00:06]} 9. Be3 {[%emt 0:05:27]} g6 {[%emt 0:03:00]} 10. Bh3 {[%emt 0:18:22]} gxf5 {[%emt 0:04:36]} 11. Qh5 {[%emt 0:00:12]} f4 {[%emt 0:00:46]} 12. Bxc8 {[%emt 0:00:41]} Rxc8 {[%emt 0:04:19]} 13. gxf4 {[%emt 0:01:25]} exf4 {[%emt 0:03:17]} 14. Bxf4 {[%emt 0:00:38]} Qf6 {[%emt 0:04:12]} 15. Rf1 {[%emt 0:01:59]} Qg6 {[%emt 0:01:20]} 16. Qh3 {[%emt 0:07:06]} Qe6 {[%emt 0:00:19]} 17. Qh5 {[%emt 0:02:32]} Bg7 {[%emt 0:02:50]} 18. Kd2 {[%emt 0:02:07]} Qg6 {[%emt 0:13:22]} 19. Qh3 {[%emt 0:01:58]} Qe6 {[%emt 0:00:11]} 20. Qh5 {[%emt 0:04:43]} O-O {[%emt 0:06:20]} 21. Rg1 {[%emt 0:04:23]} Kh8 {[%emt 0:05:55]} 22. Rg3 {[%emt 0:04:08]} Rg8 {[%emt 0:01:21]} 23. Rag1 {[%emt 0:03:00]} Bxc3+ {[%emt 0:00:30]} 24. bxc3 {[%emt 0:00:27]} Rxg3 {[%emt 0:00:26]} 25. Rxg3 {[%emt 0:01:51]} Rg8 {[%emt 0:00:08]} 26. Rh3 {[%emt 0:05:17]} Rg2+ {[%emt 0:04:25]} 27. Kc1 {[%emt 0:01:47]} Qg6 {[%emt 0:00:18]} 28. Bg3 {[%emt 0:04:39]} Qxh5 {[%emt 0:02:28]} 29. Rxh5 {[%emt 0:00:02]} f6 {[%emt 0:00:22]} 30. a4 {[%emt 0:03:11]} Kg7 {[%emt 0:02:55]} 31. Rf5 {[%emt 0:01:59]} Ne5 {[%emt 0:04:47]} 32. Bh4 {[%emt 0:02:23]} Nd7 {[%emt 0:03:31]} 33. Rf2 {[%emt 0:00:22]} Rg4 {[%emt 0:01:40]} 34. Bg3 {[%emt 0:00:05]} h5 {[%emt 0:00:20]} 35. Bf4 {[%emt 0:01:27]} b6 {[%emt 0:01:10]} 36. Kb2 {[%emt 0:00:40]} Nc5 {[%emt 0:01:18]} 37. Ka3 {[%emt 0:00:21]} Rg1 {[%emt 0:00:56]} 38. Be3 {[%emt 0:00:12]} Ra1+ {[%emt 0:01:34]} 39. Kb4 {[%emt 0:03:43]} Nxa4 {[%emt 0:00:56]} 40. Kb5 {[%emt 0:00:00]} Nxc3+ {[%emt 0:00:00]} 41. Kc6 {[%emt 0:02:30]} Ra4 {[%emt 0:07:12]} 42. Kxc7 {[%emt 0:01:05]} d5 {[%emt 0:02:38]} 43. Bd2 {[%emt 0:01:46]} Ra3 {[%emt 0:00:23]} 44. exd5 {[%emt 0:01:08]} Nxd5+ {[%emt 0:00:08]} 45. Kd6 Nc3 {[%emt 0:00:32]} 46. Ke6 {[%emt 0:00:54]} Nb5 {[%emt 0:06:13]} 47. Rg2+ {[%emt 0:02:01]} Kh7 {[%emt 0:00:07]} 48. Kxf6 {[%emt 0:01:22]} Ra1 {[%emt 0:01:53]} 49. Rg7+ {[%emt 0:05:42]} Kh8 {[%emt 0:00:05]} 50. Rg5 {[%emt 0:00:59]} Rf1+ {[%emt 0:01:12]} 51. Kg6 {[%emt 0:00:15]} Rf2 {[%emt 0:00:50]} 52. Rd5 {[%emt 0:05:18]} Kg8 {[%emt 0:01:00]} 53. Bh6 {[%emt 0:00:38]} Rg2+ {[%emt 0:00:28]} 54. Bg5 1-0

[Event "ESCC-50 2022"]
[Site "Lublin"]
[Date "2022.07.12"]
[Round "8.5"]
[White "Baliuniene, Margarita"]
[Black "Leszner, Liliana"]
[Result "0-1"]
[ECO "D11"]
[WhiteElo "1935"]
[BlackElo "1872"]
[Annotator "ChessBase"]
[PlyCount "60"]
[EventDate "2022.07.05"]
[EventType "swiss"]
[EventCountry "POL"]
[SourceTitle "playchess.com"]
[Source "ChessBase"]
[SourceQuality "1"]
[TimeControl "40/5400+30:1800+30"]

1. d4 {[%emt 0:00:02]} d5 {[%emt 0:00:15]} 2. Nf3 {[%emt 0:00:13]} Nf6 {[%emt 0:00:07]} 3. c4 {[%emt 0:00:06]} c6 {[%emt 0:00:09]} 4. e3 {[%emt 0:00:14]} a6 {[%emt 0:01:02]} 5. a4 {[%emt 0:00:32]} e6 {[%emt 0:00:53]} 6. Nc3 {[%emt 0:00:20]} a5 {[%emt 0:00:28]} 7. Bd3 {[%emt 0:00:59]} Na6 {[%emt 0:01:08]} 8. O-O {[%emt 0:00:59]} Nb4 {[%emt 0:00:50]} 9. Bb1 {[%emt 0:01:20]} dxc4 {[%emt 0:01:25]} 10. Ne5 {[%emt 0:02:40]} b6 {[%emt 0:09:22]} 11. Nxc4 {[%emt 0:07:55]} Ba6 {[%emt 0:01:37]} 12. b3 {[%emt 0:00:35]} Be7 {[%emt 0:02:30]} 13. Bb2 {[%emt 0:08:33]} O-O {[%emt 0:00:26]} 14. Qf3 {[%emt 0:03:09]} Nbd5 {[%emt 0:06:58]} 15. Ne2 {[%emt 0:06:12]} Bb4 {[%emt 0:06:55]} 16. Rd1 {[%emt 0:02:02]} Ne7 {[%emt 0:04:27]} 17. Nf4 {[%emt 0:04:39]} Bb7 {[%emt 0:03:16]} 18. Nd3 {[%emt 0:05:34]} Ned5 {[%emt 0:04:52]} 19. Nxb4 {[%emt 0:01:16]} axb4 {[%emt 0:02:56]} 20. e4 {[%emt 0:00:27]} b5 {[%emt 0:01:28]} 21. exd5 {[%emt 0:03:08]} bxc4 {[%emt 0:00:06]} 22. dxc6 {[%emt 0:00:21]} Ba6 {[%emt 0:00:03]} 23. bxc4 {[%emt 0:01:43]} Bxc4 {[%emt 0:00:02]} 24. Rc1 {[%emt 0:03:11]} Bd5 {[%emt 0:00:08]} 25. Qd3 {[%emt 0:02:01]} Qd6 {[%emt 0:00:49]} 26. c7 {[%emt 0:13:02]} Rfc8 {[%emt 0:00:48]} 27. Qb5 {[%emt 0:03:32]} Ra7 {[%emt 0:03:46]} 28. Bd3 {[%emt 0:01:58]} Rb7 {[%emt 0:02:58]} 29. Qa6 {[%emt 0:01:23]} Qf4 {[%emt 0:01:21]} 30. Bb5 {[%emt 0:01:24]} Ng4 0-1

[Event "ESCC-50 2022"]
[Site "Lublin"]
[Date "2022.07.12"]
[Round "8.6"]
[White "Zielinski, Olgierd"]
[Black "Chwalewski, Marek"]
[Result "1-0"]
[ECO "B12"]
[WhiteElo "1816"]
[BlackElo "1774"]
[Annotator "NA"]
[PlyCount "121"]
[EventDate "2022.07.05"]
[EventType "swiss"]
[EventCountry "POL"]
[SourceTitle "playchess.com"]
[Source "ChessBase"]
[SourceQuality "1"]
[TimeControl "40/5400+30:1800+30"]

1. e4 {[%emt 0:00:04]} c6 {[%emt 0:00:25]} 2. d4 {[%emt 0:00:05]} g6 {[%emt 0:00:08]} 3. c4 {[%emt 0:00:18]} d5 {[%emt 0:00:08]} 4. e5 {[%emt 0:00:17]} h5 {[%emt 0:01:14]} 5. Nc3 {[%emt 0:00:23]} Bh6 {[%emt 0:00:20]} 6. f4 {[%emt 0:03:45]} Bf5 {[%emt 0:14:15]} 7. cxd5 {[%emt 0:00:54]} cxd5 {[%emt 0:00:10]} 8. Qb3 {[%emt 0:05:52]} Qd7 {[%emt 0:10:07]} 9. Qxd5 {[%emt 0:05:29]} Nc6 {[%emt 0:01:28]} 10. Qxd7+ {[%emt 0:00:32]} Bxd7 {[%emt 0:00:31]} 11. Be3 {[%emt 0:03:01]} f6 {[%emt 0:00:47]} 12. Nf3 {[%emt 0:10:57]} O-O-O {[%emt 0:00:48]} 13. a3 {[%emt 0:07:41]} Bg4 {[%emt 0:00:43]} 14. Rd1 {[%emt 0:10:20]} fxe5 {[%emt 0:05:00]} 15. dxe5 {[%emt 0:00:13]} Bxf3 {[%emt 0:00:13]} 16. Rxd8+ {[%emt 0:03:56]} Kxd8 {[%emt 0:00:13]} 17. gxf3 {[%emt 0:00:07]} Nxe5 {[%emt 0:00:26]} 18. Bxa7 {[%emt 0:01:10]} Bxf4 {[%emt 0:01:08]} 19. Bb6+ {[%emt 0:06:23]} Ke8 {[%emt 0:00:43]} 20. Bb5+ {[%emt 0:00:53]} Nc6 {[%emt 0:06:39]} 21. Nd5 {[%emt 0:00:21]} Be5 {[%emt 0:00:52]} 22. b3 {[%emt 0:01:35]} e6 {[%emt 0:03:47]} 23. Ne3 {[%emt 0:01:52]} Nge7 {[%emt 0:00:34]} 24. O-O {[%emt 0:02:49]} Kf7 {[%emt 0:04:35]} 25. Rd1 {[%emt 0:00:33]} Nc8 {[%emt 0:11:46]} 26. Rd7+ {[%emt 0:19:20]} N6e7 {[%emt 0:00:13]} 27. Bc5 {[%emt 0:01:13]} b6 {[%emt 0:00:52]} 28. Nc4 {[%emt 0:02:18]} Bf4 {[%emt 0:02:54]} 29. Nxb6 {[%emt 0:00:38]} Nxb6 {[%emt 0:00:35]} 30. Rxe7+ {[%emt 0:00:40]} Kf6 {[%emt 0:00:40]} 31. Rb7 {[%emt 0:00:26]} Nd5 {[%emt 0:01:08]} 32. Bd4+ {[%emt 0:02:21]} e5 {[%emt 0:00:19]} 33. Bc5 {[%emt 0:00:44]} Rc8 {[%emt 0:01:21]} 34. b4 {[%emt 0:00:28]} Be3+ {[%emt 0:00:29]} 35. Bxe3 {[%emt 0:00:12]} Nxe3 {[%emt 0:00:05]} 36. Rb6+ {[%emt 0:00:13]} Kg5 {[%emt 0:00:14]} 37. Rc6 {[%emt 0:00:16]} Rd8 {[%emt 0:00:44]} 38. Kf2 {[%emt 0:00:40]} Kf4 {[%emt 0:03:25]} 39. Be2 {[%emt 0:03:56]} Rd2 {[%emt 0:02:22]} 40. Rxg6 {[%emt 0:00:00]} Nf5 {[%emt 0:00:00]} 41. Ke1 {[%emt 0:02:08]} Ra2 {[%emt 0:00:54]} 42. Rf6 {[%emt 0:14:14]} Kg5 {[%emt 0:02:29]} 43. Rf8 {[%emt 0:05:34]} Nd4 {[%emt 0:03:31]} 44. Bd1 {[%emt 0:00:23]} Rxh2 {[%emt 0:03:24]} 45. a4 {[%emt 0:00:17]} Nf5 {[%emt 0:00:15]} 46. Be2 {[%emt 0:05:59]} Nd4 {[%emt 0:00:51]} 47. Bd3 {[%emt 0:01:00]} Ra2 {[%emt 0:04:43]} 48. a5 {[%emt 0:00:30]} h4 {[%emt 0:00:28]} 49. Bc4 {[%emt 0:04:48]} Ra3 {[%emt 0:02:14]} 50. Kf2 {[%emt 0:01:17]} h3 {[%emt 0:02:52]} 51. Bd5 {[%emt 0:02:35]} Nf5 {[%emt 0:02:52]} 52. Rg8+ {[%emt 0:00:41]} Kf6 {[%emt 0:01:41]} 53. Rh8 {[%emt 0:00:37]} Ra4 {[%emt 0:08:05]} 54. Rxh3 {[%emt 0:00:49]} Rxb4 {[%emt 0:00:06]} 55. a6 {[%emt 0:00:36]} Ra4 {[%emt 0:00:29]} 56. Bb7 {[%emt 0:00:13]} Ra2+ {[%emt 0:00:25]} 57. Ke1 {[%emt 0:00:28]} Kg5 {[%emt 0:00:14]} 58. Kd1 {[%emt 0:00:33]} Kf4 {[%emt 0:00:15]} 59. Kc1 {[%emt 0:00:10]} Nd6 {[%emt 0:01:34]} 60. Rh6 {[%emt 0:01:00]} Ke3 {[%emt 0:00:42]} 61. Rxd6 {[%emt 0:00:12]} 1-0

[Event "ESCC-50 2022"]
[Site "Lublin"]
[Date "2022.07.12"]
[Round "8.7"]
[White "Puroila, Sippo"]
[Black "Padrak, Rafal"]
[Result "1/2-1/2"]
[ECO "A11"]
[WhiteElo "1803"]
[BlackElo "2125"]
[Annotator "ChessBase"]
[PlyCount "92"]
[EventDate "2022.07.05"]
[EventType "swiss"]
[EventCountry "POL"]
[SourceTitle "playchess.com"]
[Source "ChessBase"]
[SourceQuality "1"]
[TimeControl "40/5400+30:1800+30"]

1. c4 {[%emt 0:00:10]} c6 {[%emt 0:00:08]} 2. Nf3 {[%emt 0:00:26]} d5 {[%emt 0:00:06]} 3. cxd5 {[%emt 0:00:08]} cxd5 {[%emt 0:00:04]} 4. d4 {[%emt 0:00:10]} Nc6 {[%emt 0:00:10]} 5. Nc3 {[%emt 0:00:23]} Nf6 {[%emt 0:00:08]} 6. Bg5 {[%emt 0:00:57]} e6 {[%emt 0:00:17]} 7. e3 {[%emt 0:00:11]} Be7 {[%emt 0:00:36]} 8. Be2 {[%emt 0:00:20]} O-O {[%emt 0:00:23]} 9. O-O {[%emt 0:00:10]} a6 {[%emt 0:02:01]} 10. a3 {[%emt 0:00:09]} b5 {[%emt 0:07:59]} 11. b4 {[%emt 0:00:10]} Bb7 {[%emt 0:04:07]} 12. Qd3 {[%emt 0:01:22]} Ne4 {[%emt 0:02:53]} 13. Bxe7 {[%emt 0:02:51]} Qxe7 {[%emt 0:06:25]} 14. Ne5 {[%emt 0:15:05]} Nxe5 {[%emt 0:13:27]} 15. dxe5 {[%emt 0:00:05]} Qc7 {[%emt 0:00:05]} 16. Nxe4 {[%emt 0:01:23]} dxe4 {[%emt 0:00:04]} 17. Qd6 {[%emt 0:01:09]} Qxd6 {[%emt 0:22:01]} 18. exd6 {[%emt 0:00:05]} Rfd8 {[%emt 0:00:05]} 19. Rfd1 {[%emt 0:00:51]} Rac8 {[%emt 0:04:38]} 20. a4 {[%emt 0:01:37]} bxa4 {[%emt 0:07:29]} 21. Rxa4 {[%emt 0:00:07]} Rc6 {[%emt 0:00:58]} 22. b5 {[%emt 0:00:51]} axb5 {[%emt 0:00:13]} 23. Bxb5 {[%emt 0:02:58]} Rcxd6 {[%emt 0:00:41]} 24. Rxd6 {[%emt 0:00:49]} Rxd6 {[%emt 0:00:03]} 25. g3 {[%emt 0:00:57]} Rb6 {[%emt 0:01:52]} 26. Be2 {[%emt 0:04:17]} g5 {[%emt 0:02:09]} 27. Ra5 {[%emt 0:00:10]} h6 {[%emt 0:00:53]} 28. Rb5 {[%emt 0:00:06]} Rxb5 {[%emt 0:00:37]} 29. Bxb5 {[%emt 0:00:04]} f5 {[%emt 0:00:25]} 30. Kg2 {[%emt 0:00:13]} Kf7 {[%emt 0:00:10]} 31. Bc4 {[%emt 0:00:30]} Ke7 {[%emt 0:00:53]} 32. Bb5 {[%emt 0:00:07]} Kd6 {[%emt 0:00:08]} 33. Bc4 {[%emt 0:00:07]} Bd5 {[%emt 0:00:10]} 34. Ba6 {[%emt 0:00:03]} Kc5 {[%emt 0:00:17]} 35. h3 {[%emt 0:04:44]} Kb4 {[%emt 0:01:44]} 36. Bc8 {[%emt 0:00:07]} f4 {[%emt 0:17:27]} 37. gxf4 {[%emt 0:04:50]} gxf4 {[%emt 0:00:07]} 38. exf4 {[%emt 0:00:15]} e3+ {[%emt 0:00:19]} 39. Kf1 {[%emt 0:00:03]} Bg2+ {[%emt 0:00:20]} 40. Ke2 {[%emt 0:00:00]} exf2 {[%emt 0:00:00]} 41. Kxf2 {[%emt 0:00:37]} Bxh3 {[%emt 0:00:08]} 42. Kg3 {[%emt 0:00:38]} Bf5 {[%emt 0:03:49]} 43. Kh4 {[%emt 0:00:11]} Kc5 {[%emt 0:00:25]} 44. Kh5 {[%emt 0:00:04]} Kd4 {[%emt 0:00:04]} 45. Kxh6 {[%emt 0:00:41]} Ke4 {[%emt 0:00:02]} 46. Kg5 {[%emt 0:00:26]} Bh3 {[%emt 0:00:29]} 1/2-1/2

[Event "ESCC-50 2022"]
[Site "Lublin"]
[Date "2022.07.12"]
[Round "8.8"]
[White "Pietinen, Pekka"]
[Black "Kirszenberg, Marc"]
[Result "1/2-1/2"]
[ECO "B13"]
[WhiteElo "1937"]
[BlackElo "2056"]
[Annotator "ChessBase"]
[PlyCount "42"]
[EventDate "2022.07.05"]
[EventType "swiss"]
[EventCountry "POL"]
[SourceTitle "playchess.com"]
[Source "ChessBase"]
[SourceQuality "1"]
[TimeControl "40/5400+30:1800+30"]

1. e4 {[%emt 0:00:14]} c6 {[%emt 0:00:01]} 2. d4 {[%emt 0:00:29]} d5 {[%emt 0:00:05]} 3. exd5 {[%emt 0:00:13]} cxd5 {[%emt 0:00:05]} 4. c4 {[%emt 0:00:12]} Nf6 {[%emt 0:00:04]} 5. Nc3 {[%emt 0:00:12]} Nc6 {[%emt 0:00:04]} 6. Nf3 {[%emt 0:00:13]} Be6 {[%emt 0:00:04]} 7. c5 {[%emt 0:02:01]} g6 {[%emt 0:00:05]} 8. Bb5 {[%emt 0:02:35]} Bg7 {[%emt 0:00:06]} 9. O-O {[%emt 0:06:08]} O-O {[%emt 0:00:07]} 10. Bxc6 {[%emt 0:03:14]} bxc6 {[%emt 0:00:09]} 11. Re1 {[%emt 0:00:12]} Bg4 {[%emt 0:01:41]} 12. h3 {[%emt 0:05:43]} Bxf3 {[%emt 0:00:26]} 13. Qxf3 {[%emt 0:00:12]} Nd7 {[%emt 0:00:22]} 14. Qd3 {[%emt 0:01:05]} e5 {[%emt 0:00:22]} 15. Be3 {[%emt 0:00:29]} Qh4 {[%emt 0:27:41]} 16. Ne2 {[%emt 0:05:24]} Rfe8 {[%emt 0:08:01]} 17. Rac1 {[%emt 0:06:13]} a5 {[%emt 0:08:52]} 18. b3 {[%emt 0:03:32]} Re6 {[%emt 0:10:39]} 19. Qd2 {[%emt 0:03:22]} Qe7 {[%emt 0:01:32]} 20. dxe5 {[%emt 0:03:40]} Bxe5 {[%emt 0:00:28]} 21. Nd4 {[%emt 0:05:19]} Bxd4 {[%emt 0:00:04]} 1/2-1/2

[Event "ESCC-50 2022"]
[Site "Lublin"]
[Date "2022.07.12"]
[Round "8.9"]
[White "Krzyzanowski, Wojciech"]
[Black "Warnk, Torsten"]
[Result "0-1"]
[ECO "C17"]
[WhiteElo "1878"]
[BlackElo "1763"]
[Annotator "NA"]
[PlyCount "72"]
[EventDate "2022.07.05"]
[EventType "swiss"]
[EventCountry "POL"]
[SourceTitle "playchess.com"]
[Source "ChessBase"]
[SourceQuality "1"]
[TimeControl "40/5400+30:1800+30"]

1. e4 {[%emt 0:00:01]} e6 {[%emt 0:00:18]} 2. d4 {[%emt 0:00:05]} d5 {[%emt 0:00:03]} 3. Nc3 {[%emt 0:00:05]} Bb4 {[%emt 0:02:37]} 4. e5 {[%emt 0:00:05]} c5 {[%emt 0:00:34]} 5. a3 {[%emt 0:00:05]} cxd4 {[%emt 0:04:06]} 6. axb4 {[%emt 0:00:07]} dxc3 {[%emt 0:00:09]} 7. Nf3 {[%emt 0:01:12]} cxb2 {[%emt 0:08:46]} 8. Bxb2 {[%emt 0:00:02]} Ne7 {[%emt 0:01:53]} 9. Bd3 {[%emt 0:04:09]} Bd7 {[%emt 0:02:33]} 10. b5 {[%emt 0:02:32]} Ng6 {[%emt 0:08:07]} 11. h4 {[%emt 0:11:23]} f5 {[%emt 0:09:49]} 12. g4 {[%emt 0:15:17]} O-O {[%emt 0:06:51]} 13. gxf5 {[%emt 0:02:01]} exf5 {[%emt 0:00:42]} 14. Qd2 {[%emt 0:02:56]} Be6 {[%emt 0:01:32]} 15. Ng5 {[%emt 0:02:33]} Qd7 {[%emt 0:03:23]} 16. h5 {[%emt 0:02:23]} Ne7 {[%emt 0:01:03]} 17. f4 {[%emt 0:04:33]} h6 {[%emt 0:04:40]} 18. Nf3 {[%emt 0:01:51]} Qe8 {[%emt 0:02:30]} 19. Nd4 {[%emt 0:01:51]} Nc8 {[%emt 0:02:41]} 20. Ba3 {[%emt 0:01:43]} Rf7 {[%emt 0:00:25]} 21. Qg2 {[%emt 0:00:52]} Rc7 {[%emt 0:09:47]} 22. Nxf5 {[%emt 0:05:15]} Bxf5 {[%emt 0:00:53]} 23. Bxf5 {[%emt 0:00:02]} Ne7 {[%emt 0:05:51]} 24. Be6+ {[%emt 0:03:50]} Kh8 {[%emt 0:00:39]} 25. Bd6 {[%emt 0:05:52]} Rc4 {[%emt 0:06:18]} 26. Rg1 {[%emt 0:00:39]} Qf8 {[%emt 0:01:31]} 27. Bxd5 {[%emt 0:01:57]} Rxf4 {[%emt 0:02:07]} 28. O-O-O {[%emt 0:05:57]} Rf2 {[%emt 0:02:45]} 29. Rdf1 {[%emt 0:00:24]} Qf4+ {[%emt 0:00:48]} 30. Kb1 {[%emt 0:04:35]} Rxg2 {[%emt 0:01:06]} 31. Bxg2 {[%emt 0:00:15]} Qc4 {[%emt 0:04:23]} 32. Rf8+ {[%emt 0:08:05]} Ng8 {[%emt 0:00:39]} 33. Rxb8 {[%emt 0:00:13]} Rxb8 {[%emt 0:00:23]} 34. Bxb8 {[%emt 0:00:04]} Qxb5+ {[%emt 0:01:03]} 35. Kc1 {[%emt 0:01:38]} Qe2 {[%emt 0:02:23]} 36. Bxa7 {[%emt 0:02:42]} Qxe5 {[%emt 0:00:43]} 0-1